bitfinex-derivatives/quotes_ETHF0:USTF0_20241104
["timestamp","ask_amount","ask_price","bid_price","bid_amount"]
[1730756125792,2.75,2397.7,2396.9,3.2078]
[1730756125995,2.75,2397.7,2397.2,3.62521]
[1730756126204,0.41739,2397.4,2397.1,3.62523]
[1730756126405,0.41739,2397.4,2397.1,0.41743]
[1730756126699,0.41739,2397.4,2397.2,0.41742]
[1730756126700,40.8,2397.4,2397.2,0.41742]
[1730756126902,40.8,2397.4,2397.3,3.2078]
[1730756127103,0.41733,2397.8,2397.3,3.2078]
[1730756127304,3.2078,2398.1,2397.3,3.2078]
[1730756127497,0.41736,2397.6,2397.3,3.2078]
[1730756127695,0.41738,2397.5,2397.1,3.2078]
[1730756127893,1.04333,2397.8,2397.1,3.2078]
[1730756128101,0.41742,2397.2,2397.1,3.2078]
[1730756128498,0.41738,2397.4,2396.9,0.41746]
[1730756128704,3.2078,2397.8,2397.1,3.2078]
[1730756128905,40.8,2398.0,2397.5,3.2078]
[1730756129101,0.41733,2397.8,2397.5,3.62517]
[1730756129305,40.8,2398.0,2397.5,3.2078]
[1730756129701,0.41732,2397.8,2397.5,3.62516]
[1730756129901,0.41732,2397.8,2397.6,0.41735]
[1730756130103,40.8,2398.0,2397.5,3.2078]
[1730756130406,41.2173,2398.0,2397.7,0.41733]
[1730756130600,41.2173,2398.0,2397.5,3.2078]
[1730756130601,0.41732,2397.8,2397.5,3.2078]
[1730756130802,40.8,2398.0,2397.5,3.2078]
[1730756131009,0.41735,2397.6,2397.5,3.2078]
[1730756131198,40.8,2398.0,2397.2,3.2078]
[1730756131199,0.41739,2397.4,2397.2,3.2078]
[1730756131403,1.04328,2397.9,2397.2,3.2078]
[1730756131600,0.41736,2397.6,2397.3,0.4174]
[1730756131801,0.41736,2397.6,2397.5,3.2078]
[1730756132008,40.8,2398.0,2397.5,3.2078]
[1730756132198,0.41732,2397.8,2397.5,3.62516]
[1730756132405,0.41732,2397.8,2397.5,3.2078]
[1730756132702,0.41735,2397.7,2397.5,3.2078]
[1730756133104,0.4174,2397.4,2397.2,3.2078]
[1730756133303,0.41736,2397.6,2397.3,0.41739]
[1730756133907,0.41737,2397.5,2397.2,3.62521]
[1730756134108,0.41737,2397.5,2397.3,0.4174]
[1730756134309,1.04325,2397.9,2397.3,0.4174]
[1730756134310,0.41736,2397.6,2397.3,0.4174]
[1730756134506,0.41738,2397.5,2397.2,3.62521]
[1730756134705,0.4174,2397.3,2397.2,3.2078]
[1730756136011,0.41747,2396.9,2396.8,3.2078]
[1730756136813,0.41746,2397.0,2396.8,3.2078]
[1730756137110,40.8,2397.3,2396.8,3.2078]
[1730756137313,1.0433,2397.8,2396.9,3.2078]
[1730756137502,0.41743,2397.2,2396.9,3.62527]
[1730756137703,0.41743,2397.2,2396.9,3.2078]
[1730756137903,0.41745,2397.0,2396.9,3.2078]
[1730756138103,40.8,2397.2,2395.5,3.70354189]
[1730756138104,4.172,2397.1,2396.3,3.2078]
[1730756138310,0.41756,2396.4,2396.3,3.2078]
[1730756138511,3.2078,2396.6,2396.0,3.2078]
[1730756138812,0.41761,2396.1,2396.0,3.2078]
[1730756139107,0.41761,2396.1,2395.5,0.41771]
[1730756139108,40.8,2396.1,2395.5,3.2078]
[1730756139309,41.84408,2396.1,2395.5,3.2078]
[1730756139703,0.4177,2395.6,2395.5,3.2078]
[1730756140711,40.8,2396.1,2395.5,3.2078]
[1730756140712,40.8,2396.1,2395.5,7.3822]
[1730756140907,40.8,2396.1,2395.8,3.62546]
[1730756141105,40.8,2396.1,2395.8,3.2078]
[1730756141308,0.41767,2395.8,2395.5,3.2078]
[1730756141607,0.4177,2395.6,2395.5,3.2078]
[1730756142113,4.5921,2395.6,2395.5,3.2078]
[1730756142303,1.0444,2395.3,2394.6,0.41786]
[1730756142613,1.0444,2395.3,2394.5,4.51634321]
[1730756142614,0.4177,2395.6,2394.8,0.41783]
[1730756142807,0.4177,2395.6,2394.4,6.33086]
[1730756142808,3.2078,2395.6,2394.4,6.33085]
[1730756143015,0.4177,2395.6,2395.4,0.41773]
[1730756143208,0.41775,2395.4,2395.1,0.41778]
[1730756143413,0.4177,2395.6,2395.0,0.4178]
[1730756143603,0.4177,2395.6,2394.9,8.76868321]
[1730756143604,3.2078,2395.9,2394.9,8.76868321]
[1730756143809,0.41771,2395.6,2395.3,0.41774]
[1730756144108,4.25195,2395.9,2394.9,8.76868321]
[1730756144415,3.2078,2395.6,2395.0,3.2078]
[1730756144716,3.2078,2395.6,2394.9,4.51634321]
[1730756144912,3.2078,2395.6,2394.7,3.2078]
[1730756145112,3.2078,2395.6,2394.8,5.56092321]
[1730756145317,0.41773,2395.4,2395.2,0.41777]
[1730756145614,3.2078,2395.9,2394.8,8.76873321]
[1730756145803,3.2078,2395.9,2395.0,1.04449]
[1730756146007,3.2078,2395.9,2395.2,7.72414321]
[1730756146210,0.41769,2395.7,2395.4,0.41773]
[1730756146513,0.4177,2395.6,2395.2,7.72414321]
[1730756146704,0.41768,2395.8,2395.2,7.72414321]
[1730756146910,0.41768,2395.8,2395.5,0.4177]
[1730756147218,0.41768,2395.7,2395.2,7.72414321]
[1730756147711,3.2078,2395.9,2395.2,3.2078]
[1730756147915,0.41772,2395.5,2395.3,0.41774]
[1730756148311,4.25194,2395.9,2395.2,3.62556]
[1730756148616,0.41768,2395.8,2395.5,0.41771]
[1730756148814,3.2078,2395.9,2395.2,7.72414321]
[1730756148815,0.41771,2395.6,2395.3,0.41774]
[1730756149303,3.2078,2395.9,2395.4,0.41773]
[1730756149304,0.41769,2395.7,2395.4,0.41773]
[1730756149511,3.2078,2395.9,2395.2,7.72414321]
[1730756149716,0.41769,2395.7,2395.2,7.72414321]
[1730756149909,0.4177,2395.6,2395.3,0.41774]
[1730756150109,3.2078,2395.9,2395.2,7.72414321]
[1730756150315,0.4177,2395.7,2395.4,0.41773]
[1730756150704,3.2078,2395.9,2395.3,0.41774]
[1730756150908,0.41772,2395.5,2395.2,8.14190321]
[1730756151314,3.2078,2395.9,2395.2,7.72414321]
[1730756151618,0.41772,2395.5,2395.2,8.14190321]
[1730756151914,40.8,2396.1,2395.2,3.2078]
[1730756151915,0.41775,2395.3,2395.2,3.2078]
[1730756152111,0.41775,2395.3,2394.4,5.2861]
[1730756152112,1.0445,2395.1,2394.5,4.51634321]
[1730756152311,1.0445,2395.1,2394.0,10.439]
[1730756152312,0.4179,2394.5,2394.2,0.41793]
[1730756152520,4.25224,2395.2,2394.1,3.2078]
[1730756152710,40.8,2395.1,2394.5,0.41788]
[1730756152911,0.41785,2394.8,2394.5,0.41788]
[1730756153225,0.41785,2394.8,2394.6,0.41787]
[1730756153422,40.8,2395.1,2394.4,4.51634321]
[1730756153719,0.41784,2394.8,2394.4,4.51634321]
[1730756154026,40.8,2395.1,2394.9,0.41782]
[1730756154317,41.21779,2395.1,2394.9,0.41781]
[1730756154521,41.21779,2395.1,2394.9,0.41782]
[1730756155123,0.41779,2395.1,2394.7,4.51634321]
[1730756155323,3.2078,2395.2,2394.7,4.51634321]
[1730756155519,3.2078,2395.2,2394.4,3.2078]
[1730756155722,3.2078,2394.9,2394.2,0.41793]
[1730756155919,0.41784,2394.8,2394.1,3.2078]
[1730756156116,3.2078,2394.9,2394.3,0.41791]
[1730756156117,0.41788,2394.6,2394.3,0.41791]
[1730756156317,3.2078,2394.9,2394.3,4.51634321]
[1730756156517,3.2078,2394.9,2394.5,0.41789]
[1730756156719,0.41787,2394.7,2394.4,0.41791]
[1730756156914,3.2078,2394.9,2394.1,3.2078]
[1730756157223,0.41784,2394.8,2394.2,1.04486]
[1730756157420,40.8,2395.1,2394.4,0.4179]
[1730756157626,0.41787,2394.7,2394.5,0.41788]
[1730756157922,0.41784,2394.8,2394.2,1.04485]
[1730756158119,0.41784,2394.8,2394.6,0.41787]
[1730756158319,40.8,2395.1,2394.4,4.51634321]
[1730756158519,0.41784,2394.8,2394.6,0.41787]
[1730756158727,40.8,2395.1,2394.4,7.72414321]
[1730756158921,3.2078,2394.6,2393.6,0.4184]
[1730756159121,4.176,2395.0,2393.4,3.2078]
[1730756159122,3.2078,2394.3,2393.4,3.2078]
[1730756159325,0.41803,2393.8,2393.5,0.41805]
[1730756159521,0.41803,2393.8,2393.6,0.41804]
[1730756159724,3.2078,2394.3,2393.4,3.2078]
[1730756159931,0.41796,2394.1,2393.6,4.51634321]
[1730756160120,3.71867,2394.5,2393.6,4.51634321]
[1730756160121,6.92647,2394.5,2393.6,4.51634321]
[1730756160314,0.41798,2394.0,2393.8,0.41801]
[1730756160520,6.92647,2394.5,2393.6,4.51634321]
[1730756160721,6.92647,2394.5,2393.9,0.41799]
[1730756160722,0.41797,2394.1,2393.9,0.41799]
[1730756161026,0.41797,2394.1,2393.7,0.41803]
[1730756161226,4.1776,2394.1,2393.1,3.2078]
[1730756161425,4.51634321,2394.3,2392.4,1.04563]
[1730756161426,3.2078,2393.4,2392.4,1.04563]
[1730756161623,3.2078,2393.4,2392.5,1.0456]
[1730756161824,40.8,2393.3,2392.7,3.2078]
[1730756162020,41.84529,2393.3,2392.3,3.2078]
[1730756162338,0.41822,2392.6,2392.3,0.41827]
[1730756162522,0.41822,2392.6,2392.0,3.2078]
[1730756162523,3.2078,2392.4,2391.5,3.2078]
[1730756162726,3.2078,2392.7,2392.1,0.4183]
[1730756162920,3.2078,2392.7,2392.0,0.41832]
[1730756163118,3.2078,2392.7,2391.9,3.2078]
[1730756163328,0.41823,2392.6,2392.1,3.2078]
[1730756163636,0.41823,2392.6,2389.7,1.08337505]
[1730756163637,3.2078,2391.2,2389.7,1.08337505]
[1730756163829,5.49548289,2392.6,2389.5,4.99289774]
[1730756163830,3.2078,2390.1,2389.5,0.17011585]
[1730756164122,1.04625,2391.1,2389.5,0.17011585]
[1730756164123,4.93509321,2389.6,2389.5,0.17011585]
[1730756164323,4.93509321,2389.6,2387.4,7.11074321]
[1730756164324,4.51634321,2389.6,2387.4,7.11074321]
[1730756164522,4.51634321,2389.6,2387.9,3.2078]
[1730756164523,3.2078,2389.0,2387.9,3.2078]
[1730756164722,2.09318,2390.3,2388.0,1.31300258]
[1730756164723,3.2078,2388.1,2388.0,1.31300258]
[1730756164918,3.2078,2388.1,2386.6,0.4192]
[1730756165119,3.2078,2388.2,2386.8,0.4192]
[1730756165317,0.41899,2388.3,2387.6,0.41909]
[1730756165623,0.41901,2388.1,2387.3,0.00536875]
[1730756165823,3.2078,2388.1,2387.3,0.00536875]
[1730756166124,3.2078,2387.8,2387.4,1.81266445]
[1730756166325,40.8,2388.2,2387.3,8.75e-06]
[1730756166326,0.41913,2387.4,2387.3,8.75e-06]
[1730756166621,0.41913,2387.4,2384.9,10.458]
[1730756166622,4.2559,2386.9,2385.1,3.2078]
[1730756166822,14.54323522,2387.7,2385.5,0.41947]
[1730756166823,0.41934,2386.3,2385.5,0.41947]
[1730756167023,3.2078,2385.9,2385.2,4.54635377]
[1730756167326,2.6084,2388.0,2385.2,4.54635377]
[1730756167327,3.2078,2385.3,2385.2,4.54635377]
[1730756167528,3.2078,2385.3,2384.1,3.2078]
[1730756167731,3.2078,2385.3,2383.3,3.2078]
[1730756167732,3.2078,2384.6,2383.3,3.2078]
[1730756167919,3.2078,2384.6,2382.8,0.70508156]
[1730756167920,40.8,2384.5,2384.0,0.41973]
[1730756168224,40.8,2384.5,2383.9,4.19949272]
[1730756168428,3.2078,2385.8,2384.4,3.2078]
[1730756168621,2.7561,2387.2,2385.1,4.51634321]
[1730756168622,3.2078,2386.3,2385.1,4.51634321]
[1730756168823,2.7561,2387.2,2384.0,13.5585847]
[1730756168824,3.2078,2387.2,2386.0,3.2078]
[1730756169023,40.8,2388.7,2387.1,0.41917]
[1730756169024,3.2078,2387.9,2387.1,0.41917]
[1730756169331,3.2078,2387.9,2386.7,7.72414321]
[1730756169534,3.2078,2387.9,2387.0,3.2078]
[1730756169834,3.2078,2388.3,2387.6,3.2078]
[1730756170125,3.2078,2388.3,2387.4,0.41913]
[1730756170126,0.419,2388.2,2387.1,3.2078]
[1730756170428,3.2078,2387.3,2386.4,3.2078]
[1730756170624,3.2078,2386.5,2385.3,3.2078]
[1730756170829,3.2078,2386.2,2385.0,3.2078]
[1730756171130,0.41933,2386.3,2385.5,0.41947]
[1730756171331,3.2078,2386.6,2385.0,6.12639224]
[1730756171332,3.2078,2386.6,2385.3,3.2078]
[1730756171632,3.2078,2386.6,2385.6,3.2078]
[1730756171823,3.2078,2387.3,2386.0,10.00311493]
[1730756172024,2.5379,2387.6,2386.6,3.2078]
[1730756172230,3.2078,2387.7,2386.7,3.2078]
[1730756172422,3.2078,2387.7,2386.8,3.2078]
[1730756172623,3.2078,2387.7,2387.0,0.41919]
[1730756172823,3.2078,2387.7,2386.7,3.2078]
[1730756173032,3.2078,2387.7,2387.2,0.41916]
[1730756173231,3.2078,2387.7,2386.3,1.04828]
[1730756173232,3.2078,2387.7,2387.3,0.41914]
[1730756173530,3.2078,2387.7,2387.2,3.2078]
[1730756173730,3.2078,2387.7,2387.0,6.79531493]
[1730756173925,3.2078,2387.7,2387.2,0.41916]
[1730756174125,3.2078,2387.7,2387.0,10.00311493]
[1730756174524,40.8,2388.8,2387.4,6.79531493]
[1730756174525,3.2078,2388.4,2387.4,6.79531493]
[1730756174729,2.8012,2389.0,2387.9,3.2078]
[1730756174938,2.8012,2389.0,2387.9,0.41904]
[1730756174939,0.41893,2388.6,2387.9,0.41904]
[1730756175130,3.2078,2388.7,2387.9,3.2078]
[1730756175333,3.2078,2388.7,2387.5,3.2078]
[1730756175530,3.2078,2388.7,2387.4,6.79531493]
[1730756175531,0.41893,2388.6,2387.7,3.2078]
[1730756175730,3.2078,2388.7,2388.1,0.419]
[1730756175941,3.2078,2388.7,2388.3,0.41896]
[1730756176146,3.2078,2388.7,2388.0,3.2078]
[1730756176344,3.2078,2388.7,2387.9,6.79531493]
[1730756176749,3.2078,2389.2,2388.3,0.41897]
[1730756177049,3.2078,2389.2,2388.3,3.2078]
[1730756177549,3.2078,2389.2,2388.6,0.41891]
[1730756177952,3.2078,2389.2,2388.6,3.2078]
[1730756178351,3.62654,2389.7,2389.0,0.41885]
[1730756178553,3.2078,2389.7,2388.9,3.2078]
[1730756178752,3.2078,2390.0,2389.2,3.2078]
[1730756178945,3.2078,2390.0,2389.5,0.41876]
[1730756179147,40.8,2390.1,2389.2,6.79531493]
[1730756179348,3.2078,2390.3,2389.4,3.2078]
[1730756179555,2.775,2391.2,2389.2,3.2078]
[1730756179556,3.2078,2390.0,2389.2,3.2078]
[1730756179744,3.2078,2390.0,2388.3,6.79531493]
[1730756179745,3.2078,2389.3,2388.3,3.2078]
[1730756179950,3.2078,2389.3,2387.3,0.02428]
[1730756179951,3.2078,2388.9,2387.6,3.2078]
[1730756180157,3.2078,2388.9,2387.3,0.02428]
[1730756180158,0.41905,2387.9,2387.3,0.02428]
[1730756180451,3.2078,2388.5,2387.7,3.2078]
[1730756180958,3.2078,2388.5,2387.8,3.2078]
[1730756181156,0.41908,2387.7,2387.6,3.2078]
[1730756181352,0.41908,2387.7,2385.7,1.46777]
[1730756181353,0.41928,2386.6,2385.9,0.41938]
[1730756181555,3.2078,2386.7,2385.7,3.2078]
[1730756181749,40.8,2386.5,2385.8,2.39171724]
[1730756182057,40.8,2386.5,2385.7,3.2078]
[1730756182058,3.2078,2386.3,2385.7,3.2078]
[1730756182557,3.2078,2387.7,2386.2,10.00311493]
[1730756182755,2.7177,2388.4,2386.8,6.79531493]
[1730756182756,3.2078,2388.2,2386.8,6.79531493]
[1730756182951,40.8,2388.1,2387.3,3.2078]
[1730756183156,40.8,2388.1,2387.3,3.62695]
[1730756183349,40.8,2388.1,2387.0,3.2078]
[1730756183556,0.41905,2387.9,2387.1,0.41919]
[1730756183760,0.41913,2387.5,2386.7,0.41925]
[1730756183957,0.41913,2387.5,2386.8,0.41923]
[1730756184151,0.41913,2387.5,2386.6,3.2078]
[1730756184152,0.41912,2387.5,2386.7,0.41924]
[1730756184453,3.62691,2387.6,2386.8,0.41924]
[1730756184657,3.62691,2387.6,2386.9,3.62702]
[1730756184853,0.41905,2387.9,2387.2,0.41917]
[1730756185261,0.41899,2388.3,2387.5,0.4191]
[1730756185449,0.41899,2388.3,2387.3,5.15202051]
[1730756185653,40.8,2388.2,2387.5,0.41911]
[1730756185962,40.8,2388.2,2387.6,0.41908]
[1730756186166,40.8,2388.2,2387.6,3.2078]
[1730756186354,0.41904,2388.0,2387.3,3.62695]
[1730756186555,0.41905,2387.9,2387.3,3.2078]
[1730756186963,3.2078,2388.6,2388.0,0.41902]
[1730756187162,0.41896,2388.4,2387.7,3.62687]
[1730756187351,3.2078,2388.6,2388.0,0.41902]
[1730756187551,3.2078,2388.6,2387.5,3.2078]
[1730756187552,40.8,2388.5,2387.5,3.2078]
[1730756187758,40.8,2388.5,2388.0,0.41903]
[1730756188153,3.62666,2389.0,2388.3,0.41897]
[1730756188358,2.6749,2389.5,2388.4,0.41894]
[1730756188359,0.41883,2389.2,2388.4,0.41894]
[1730756188658,2.6749,2389.5,2387.5,3.80927]
[1730756188659,3.2078,2388.9,2387.8,3.2078]
[1730756189051,0.41889,2388.8,2388.0,0.41901]
[1730756189250,3.2078,2388.6,2387.8,3.2078]
[1730756189460,3.2078,2388.9,2387.8,3.2078]
[1730756190158,40.8,2389.1,2387.9,1.52333808]
[1730756190360,40.8,2389.1,2388.1,3.2078]
[1730756190663,40.8,2389.1,2387.5,2.7615]
[1730756190664,3.2078,2388.7,2387.8,3.2078]
[1730756190860,0.41897,2388.4,2387.8,3.2078]
[1730756191065,0.41898,2388.3,2387.8,3.2078]
[1730756191266,3.2078,2388.7,2387.8,3.2078]
[1730756191467,40.8,2389.1,2387.9,0.41903]
[1730756191468,0.41894,2388.5,2387.9,0.41903]
[1730756191665,3.2078,2388.0,2387.1,3.2078]
[1730756191857,3.2078,2387.7,2386.4,3.2078]
[1730756192063,0.41919,2387.1,2386.5,2.41613064]
[1730756192263,1.0476,2388.0,2386.7,3.62704]
[1730756192264,3.2078,2387.3,2386.7,3.62704]
[1730756192455,3.2078,2387.5,2386.4,3.2078]
[1730756192962,3.2078,2387.5,2386.7,3.2078]
[1730756193165,0.41914,2387.4,2386.8,0.41923]
[1730756193361,0.41921,2387.0,2386.4,3.6271]
[1730756193569,0.41921,2387.0,2386.2,4.61897678]
[1730756193570,0.4192,2387.0,2386.2,0.41934]
[1730756193765,3.2078,2387.1,2386.0,3.2078]
[1730756193963,3.2078,2386.3,2385.0,3.2078]
[1730756194270,0.41941,2385.9,2385.4,2.65509954]
[1730756194571,44.0078,2386.2,2385.5,0.41946]
[1730756194572,0.41937,2386.1,2385.5,0.41946]
[1730756194759,40.8,2386.2,2385.6,3.2078]
[1730756194961,40.8,2386.2,2385.6,0.41945]
[1730756195157,40.8,2386.2,2385.7,8.58067983]
[1730756195364,3.2078,2387.4,2386.0,6.79531493]
[1730756195662,1.04786,2387.4,2386.2,3.2078]
[1730756195872,40.8,2387.3,2386.5,0.41928]
[1730756196059,40.8,2387.3,2386.2,3.2078]
[1730756196060,3.2078,2386.9,2386.2,3.2078]
[1730756196269,0.41928,2386.6,2386.0,0.41936]
[1730756196566,3.2078,2387.0,2386.3,0.05266983]
[1730756196772,3.62701,2387.0,2386.5,0.41929]
[1730756196964,40.8,2387.3,2386.3,3.2078]
[1730756197165,41.21916,2387.3,2386.8,0.41924]
[1730756197465,0.41918,2387.2,2386.7,0.41926]
[1730756197667,0.41919,2387.1,2386.6,3.62706]
[1730756197968,0.41918,2387.2,2386.7,0.41925]
[1730756198172,40.8,2387.3,2386.7,0.41925]
[1730756198173,40.8,2387.3,2386.7,2.31272407]
[1730756198561,3.2078,2387.1,2386.1,2.733]
[1730756198764,0.41924,2386.8,2386.3,0.41931]
[1730756198965,0.41924,2386.8,2386.1,2.733]
[1730756198966,3.2078,2386.5,2386.2,2.39171724]
[1730756199159,3.2078,2386.5,2385.6,2.763]
[1730756199160,3.2078,2386.8,2385.6,2.763]
[1730756199364,3.2078,2386.8,2384.2,7.59582]
[1730756199365,3.2078,2385.8,2384.9,3.2078]
[1730756199566,4.1904,2387.2,2384.2,0.41968]
[1730756199567,0.41962,2384.7,2384.2,0.41968]
[1730756199766,0.41962,2384.7,2383.6,1.04947]
[1730756199767,0.41973,2384.0,2383.1,3.2078]
[1730756199971,0.41994,2382.8,2382.7,7.16e-06]
[1730756200371,6.79531493,2382.6,2381.7,3.2078]
[1730756200569,41.22,2382.5,2382.0,0.42007]
[1730756200774,40.8,2382.5,2381.9,4.76613819]
[1730756200967,40.8,2382.5,2381.7,3.2078]
[1730756201168,0.41983,2383.5,2382.8,0.41994]
[1730756201364,3.2078,2383.7,2382.3,3.2078]
[1730756201569,0.41986,2383.3,2382.7,0.41996]
[1730756201863,3.2078,2384.1,2382.7,3.2078]
[1730756202067,3.2078,2384.4,2383.1,3.2078]
[1730756202269,41.21968,2384.3,2383.6,0.41979]
[1730756202468,3.2078,2384.4,2383.8,6.79531493]
[1730756202676,2.5541,2387.0,2384.3,10.00311493]
[1730756202677,3.2078,2385.8,2384.3,10.00311493]
[1730756202871,3.2078,2385.8,2385.1,3.2078]
[1730756203074,6.79531493,2387.1,2385.4,3.2078]
[1730756203075,3.2078,2386.1,2385.4,3.2078]
[1730756203377,40.8,2386.9,2385.5,3.2078]
[1730756203673,3.2078,2386.4,2385.1,3.2078]
[1730756203869,3.2078,2386.4,2384.4,1.04914]
[1730756203870,3.2078,2386.4,2385.4,3.2078]
[1730756204070,0.41932,2386.4,2385.8,0.4194]
[1730756204371,0.41932,2386.4,2384.9,13.18062133]
[1730756204372,3.2078,2385.9,2385.1,3.2078]
[1730756204674,3.2078,2385.9,2385.1,0.41954]
[1730756204870,3.2078,2385.9,2384.9,2.97130403]
[1730756204871,3.2078,2385.9,2385.0,3.2078]
[1730756205175,3.2078,2385.9,2385.3,3.2078]
[1730756205370,1.04822,2386.6,2385.3,3.2078]
[1730756205371,3.2078,2386.6,2385.3,3.2078]
[1730756205565,3.2078,2386.6,2385.6,3.2078]
[1730756205771,3.2078,2386.6,2385.6,0.41945]
[1730756205975,3.2078,2386.6,2385.3,3.2078]
[1730756206178,3.2078,2386.6,2384.5,2.5736]
[1730756206179,0.41931,2386.5,2386.0,0.41938]
[1730756206373,3.2078,2386.6,2385.9,3.2078]
[1730756206580,3.2078,2386.6,2385.2,7.84409493]
[1730756206581,0.41929,2386.5,2386.0,0.41936]
[1730756206974,41.21923,2386.9,2386.4,0.41931]
[1730756207175,41.21923,2386.9,2386.4,0.41929]
[1730756207575,40.8,2386.9,2386.2,3.2078]
[1730756207770,3.2078,2386.3,2385.6,3.2078]
[1730756207973,3.2078,2386.7,2385.6,3.2078]
[1730756208274,3.2078,2386.7,2385.9,3.2078]
[1730756208482,40.8,2386.9,2385.9,3.2078]
[1730756208674,0.41934,2386.3,2385.9,3.2078]
[1730756208882,0.41934,2386.3,2385.1,6.79531493]
[1730756208883,3.2078,2386.4,2385.0,3.2078]
[1730756209088,6.79531493,2386.6,2385.0,3.2078]
[1730756209089,3.2078,2386.3,2385.0,3.2078]
[1730756209274,3.2078,2386.3,2385.3,3.2078]
[1730756209580,3.2078,2386.3,2385.0,3.2078]
[1730756209783,40.8,2386.2,2385.3,3.2078]
[1730756209977,0.41941,2385.9,2385.3,6.519528]
[1730756210177,0.41939,2386.0,2385.5,0.41946]
[1730756210368,0.41937,2386.1,2385.6,0.41944]
[1730756210568,40.8,2386.2,2385.4,2.86587161]
[1730756210773,40.8,2386.2,2386.1,0.41936]
[1730756210981,3.2078,2386.8,2386.0,3.2078]
[1730756210982,0.41932,2386.4,2386.0,3.2078]
[1730756211177,0.41932,2386.4,2385.4,8.97994561]
[1730756211178,3.2078,2386.5,2385.4,3.25899848]
[1730756211373,40.8,2386.3,2385.3,3.2078]
[1730756211570,40.8,2386.3,2385.6,0.41945]
[1730756211775,40.8,2386.3,2385.0,3.2078]
[1730756211776,0.41935,2386.2,2385.3,0.41949]
[1730756212083,0.41946,2385.6,2385.0,3.62735]
[1730756212271,3.2078,2386.2,2385.0,3.2078]
[1730756212475,3.2078,2386.2,2384.6,0.4192]
[1730756212476,40.8,2386.3,2385.3,3.2078]
[1730756212677,40.8,2386.3,2385.6,3.2078]
[1730756212876,40.8,2386.3,2385.4,1.04872]
[1730756212877,40.8,2386.3,2385.4,4.77067268]
[1730756213177,40.8,2386.3,2385.1,3.62732]
[1730756213375,40.8,2386.3,2385.1,3.2078]
[1730756213376,3.2078,2386.1,2385.1,3.2078]
[1730756213669,3.2078,2386.1,2383.5,1.08109476]
[1730756213670,1.04885,2385.1,2383.6,2.5462]
[1730756213877,3.2078,2385.0,2383.6,2.5462]
[1730756214074,3.2078,2385.0,2384.0,3.28766763]
[1730756214276,0.41962,2384.7,2384.1,3.6275]
[1730756214475,3.2078,2385.0,2383.9,0.15826804]
[1730756214476,0.41957,2384.9,2383.9,0.15826804]
[1730756214781,0.41958,2384.9,2384.4,0.41966]
[1730756214980,0.41958,2384.9,2384.3,0.41966]
[1730756215288,0.41956,2385.0,2384.5,0.41963]
[1730756215479,0.4195,2385.3,2384.8,0.41958]
[1730756215678,3.2078,2385.8,2384.6,3.28761453]
[1730756215882,0.41947,2385.5,2385.0,0.41955]
[1730756216087,3.2078,2385.5,2384.5,8.5784618]
[1730756216283,3.2078,2385.8,2384.6,6.25810261]
[1730756216581,3.2078,2385.8,2385.5,0.41945]
[1730756217287,3.2078,2385.8,2385.5,0.41946]
[1730756217482,3.2078,2385.8,2385.6,0.41944]
[1730756217679,40.8,2386.3,2384.9,3.2078]
[1730756217680,0.41939,2386.0,2384.9,3.2078]
[1730756217877,3.2078,2386.2,2385.0,7.60302461]
[1730756218084,40.8,2386.3,2385.2,3.2078]
[1730756218282,40.8,2386.3,2386.0,0.41938]
[1730756218585,40.8,2386.3,2386.1,3.62715]
[1730756218790,40.8,2386.3,2386.2,4.60974]
[1730756218984,0.41926,2386.7,2386.2,4.1904]
[1730756219179,0.41921,2387.0,2386.0,3.2078]
[1730756219384,40.8,2386.9,2386.6,0.41927]
[1730756219584,40.8,2386.9,2386.3,3.2078]
[1730756219782,40.8,2386.9,2386.7,0.41926]
[1730756219989,40.8,2386.9,2386.4,2.20725634]
[1730756220286,40.8,2386.9,2385.6,3.2078]
[1730756220287,0.41928,2386.6,2386.1,0.73549826]
[1730756220481,40.8,2386.9,2386.6,0.41926]
[1730756220679,40.8,2386.9,2386.1,4.25621]
[1730756220883,40.8,2386.9,2386.7,0.41925]
[1730756221196,40.8,2386.9,2386.2,2.49705692]
[1730756221390,0.41924,2386.8,2386.4,0.41929]
[1730756221594,0.41924,2386.8,2386.0,0.05267646]
[1730756221595,0.41936,2386.1,2386.0,0.05267646]
[1730756221885,0.41939,2386.0,2385.0,1.04889]
[1730756222094,3.2078,2385.8,2385.6,0.41944]
[1730756222281,3.2078,2385.8,2385.0,1.04889]
[1730756222282,3.2078,2385.8,2385.0,4.8683783]
[1730756222593,0.4196,2384.8,2384.4,0.41965]
[1730756222789,0.41961,2384.7,2384.3,0.41966]
[1730756222996,3.2078,2385.0,2384.5,0.18462669]
[1730756223290,3.2078,2385.1,2384.4,0.02637967]
[1730756223493,11.05187493,2385.4,2383.8,6.88321]
[1730756223694,11.05187493,2385.4,2384.3,3.47228546]
[1730756223695,10.00311493,2385.4,2384.3,3.47228546]
[1730756223880,5.46118694,2386.6,2384.1,8.2078]
[1730756223881,3.2078,2385.1,2384.2,0.02637967]
[1730756224081,6.79531493,2385.9,2384.2,16.55368064]
[1730756224082,3.2078,2385.4,2384.2,16.55368064]
[1730756224288,3.2078,2385.5,2384.2,3.2078]
[1730756224589,3.2078,2385.2,2384.2,3.47228657]
[1730756224795,0.41958,2384.9,2384.2,3.47228657]
[1730756224983,3.2078,2385.2,2384.1,5.0]
[1730756225187,40.8,2384.8,2384.1,5.0]